bitfinex-derivatives/quotes_ETHF0:USTF0_20220108
["timestamp","ask_amount","ask_price","bid_price","bid_amount"]
[1641669588247,0.08294,3015.1,3013.7,3.50479]
[1641669588445,0.08293,3015.2,3014.1,1.5]
[1641669588646,2.00479,3015.3,3014.4,1.65805033]
[1641669588847,2.00479,3015.3,3014.4,14.01]
[1641669589048,2.00479,3015.3,3013.8,0.0466]
[1641669589246,2.00479,3015.3,3014.8,2.00479]
[1641669589446,2.00479,3015.3,3014.8,3.307547]
[1641669590048,2.00479,3015.3,3014.8,2.00479]
[1641669590448,2.00479,3015.3,3014.8,2.66676]
[1641669590648,2.00479,3015.3,3013.4,0.0466]
[1641669590850,0.08293,3015.2,3013.4,14.0566]
[1641669591049,0.08293,3015.2,3013.4,14.01]
[1641669591250,2.00479,3014.5,3013.8,2.00479]
[1641669591450,2.00479,3014.5,3013.9,1.302757]
[1641669591850,0.08294,3015.2,3013.9,1.302757]
[1641669592051,2.00479,3015.3,3014.3,14.01]
[1641669592253,2.00479,3015.3,3014.2,1.65819055]
[1641669593254,3.50479,3014.8,3013.8,2.00479]
[1641669593450,1.58293,3014.7,3013.8,2.00479]
[1641669593650,0.08293,3014.7,3013.8,2.00479]
[1641669593851,0.68943,3014.7,3013.8,2.00479]
[1641669594651,0.6065,3014.7,3013.8,2.00479]
[1641669595251,2.00479,3014.8,3013.8,2.00479]
[1641669597452,0.99522302,3014.4,3013.0,1.65881769]
[1641669597652,1.5,3014.3,3013.0,1.65881769]
[1641669597851,0.08294,3014.2,3013.0,1.65881769]
[1641669598051,0.08294,3014.3,3013.0,1.65881769]
[1641669598453,1.65911768,3014.2,3012.8,14.01]
[1641669599154,4.0,3014.1,3012.5,1.65911768]
[1641669599356,2.00479,3013.2,3012.5,1.65911768]
[1641669599554,2.00479,3013.2,3012.4,2.00479]
[1641669599954,1.5,3012.7,3012.1,2.00479]
[1641669600154,1.5,3012.5,3011.4,0.8569]
[1641669600354,0.083,3012.4,3011.4,0.8569]
[1641669600956,4.0,3012.3,3011.4,0.8569]
[1641669601156,0.083,3012.2,3011.4,0.8569]
[1641669601356,2.00479,3011.5,3011.4,0.8569]
[1641669602157,2.00479,3011.5,3010.4,2.00479]
[1641669602158,1.01457622,3011.4,3010.4,2.00479]
[1641669602460,1.5,3010.6,3009.3,1.66089781]
[1641669602657,1.5,3010.6,3007.7,0.4943]
[1641669602658,3.98809922,3010.6,3008.9,1.66109922]
[1641669602859,2.48809922,3010.6,3008.9,1.66109922]
[1641669603059,1.5,3010.4,3008.6,2.34569921]
[1641669603257,1.5,3010.4,3008.1,33.35815]
[1641669603258,1.66130067,3010.2,3008.5,1.66130067]
[1641669603557,1.5,3009.5,3008.4,14.01]
[1641669603758,41.47497911,3009.4,3007.9,33.8339]
[1641669603959,41.47497911,3009.4,3007.5,0.04727]
[1641669603960,1.5,3008.9,3007.5,0.04727]
[1641669604359,1.5,3008.8,3006.4,0.04727]
[1641669604560,0.08312,3008.7,3007.3,1.5]
[1641669604759,4.0,3008.9,3007.8,1.5]
[1641669604959,1.27213319,3009.1,3008.4,1.5]
[1641669605158,5.3934998,3010.4,3008.7,1.5]
[1641669605359,5.3934998,3010.4,3010.2,2.00479]
[1641669605661,1.3934998,3010.4,3010.2,2.00479]
[1641669606059,1.3934998,3010.4,3008.0,1.5]
[1641669606262,5.3934998,3010.4,3008.1,0.04791]
[1641669606460,5.3934998,3010.4,3008.0,1.5]
[1641669606660,5.3934998,3010.4,3008.7,1.5]
[1641669606860,1.5,3010.1,3009.0,1.66101644]
[1641669607063,2.36346691,3010.1,3008.4,1.66136691]
[1641669607259,2.36346691,3010.1,3008.1,1.6613669]
[1641669607260,0.7021,3010.1,3007.6,1.5]
[1641669607460,0.7021,3010.1,3008.9,1.5]
[1641669607661,0.5096,3011.4,3009.0,1.5]
[1641669607961,0.5096,3011.4,3009.1,0.04791]
[1641669608161,1.66081782,3011.1,3009.4,1.66081782]
[1641669608360,4.0,3011.0,3009.4,1.66081782]
[1641669608561,0.08305,3010.9,3009.4,1.66081782]
[1641669609164,0.08305,3011.0,3009.6,1.66068543]
[1641669609364,0.08304,3011.2,3010.6,2.00479]
[1641669609567,2.00479,3011.3,3010.7,1.302757]
[1641669609765,2.00479,3011.3,3010.8,1.66005412]
[1641669609967,1.66169454,3012.0,3011.2,1.6597841]
[1641669610169,0.08301,3012.3,3010.8,1.5]
[1641669610366,0.08301,3012.8,3011.7,1.65954996]
[1641669610566,0.08301,3012.8,3011.7,1.65940951]
[1641669610769,0.08298,3013.3,3012.3,1.6592333]
[1641669610966,1.5,3013.0,3011.2,0.08297]
[1641669611167,4.0,3012.7,3011.1,1.65988052]
[1641669611368,2.00479,3011.8,3011.1,2.00479]
[1641669611568,2.00479,3012.1,3011.1,2.00479]
[1641669611569,1.31281377,3012.6,3011.2,1.302757]
[1641669611770,0.03769301,3012.6,3011.2,15.312757]
[1641669611970,0.03769301,3012.6,3011.3,0.083]
[1641669612173,0.083,3014.0,3012.5,1.65895529]
[1641669612372,0.08296,3014.3,3012.5,1.65895529]
[1641669612572,1.65895529,3014.5,3012.5,1.65895529]
[1641669612573,0.08296,3014.4,3012.5,1.65895529]
[1641669612772,0.08296,3014.4,3011.7,0.08296]
[1641669612773,0.08296,3014.4,3013.1,1.65876266]
[1641669612973,0.08294,3014.7,3013.1,1.65876266]
[1641669613374,2.00479,3014.0,3013.2,2.00479]
[1641669613575,2.00479,3014.0,3013.3,1.302757]
[1641669613774,2.00479,3014.0,3013.2,2.00479]
[1641669613976,0.12061761,3013.9,3013.2,2.00479]
[1641669614377,0.03767761,3013.8,3013.3,0.66197]
[1641669614781,2.00479,3014.0,3013.3,2.32063912]
[1641669615578,2.00479,3014.0,3013.4,0.640787]
[1641669615780,2.00479,3014.0,3013.3,0.66197]
[1641669616380,5.53768078,3013.9,3012.4,0.08294]
[1641669616579,5.53768078,3013.9,3011.5,32.78816]
[1641669616580,0.08296,3013.8,3011.5,32.78816]
[1641669616780,0.08296,3013.8,3011.8,1.5]
[1641669616980,0.03768078,3013.8,3011.9,0.08297]
[1641669617282,0.12065078,3013.7,3012.3,1.5]
[1641669617483,2.00479,3013.2,3012.8,1.65895529]
[1641669617684,2.00479,3014.0,3012.9,1.302757]
[1641669617885,0.08296,3014.9,3012.9,1.302757]
[1641669618087,1.5,3014.9,3012.9,1.302757]
[1641669618286,0.03768102,3013.9,3012.9,1.302757]
[1641669618485,1.5,3013.5,3012.5,2.00479]
[1641669618685,0.08297,3013.8,3012.5,2.00479]
[1641669618985,0.03768102,3013.4,3012.5,2.00479]
[1641669619284,0.08297,3013.3,3012.5,2.00479]
[1641669619584,0.03768102,3013.5,3012.5,2.00479]
[1641669619585,0.08297,3013.5,3013.0,1.5]
[1641669619788,0.08297,3014.7,3013.1,14.01]
[1641669619984,0.08294,3015.1,3013.1,14.01]
[1641669620185,4.0,3015.0,3012.6,0.723757]
[1641669620384,4.0,3014.3,3012.5,2.00479]
[1641669620586,1.5,3013.7,3012.5,2.00479]
[1641669620785,0.08297,3013.6,3012.5,2.00479]
[1641669620985,0.6846,3013.7,3012.5,2.00479]
[1641669621187,0.08297,3014.1,3012.5,2.00479]
[1641669621389,2.08776,3014.1,3013.4,2.00479]
[1641669621587,2.08776,3014.1,3013.5,0.66197]
[1641669621588,0.03768046,3013.6,3013.5,0.66197]
[1641669621792,0.03768046,3014.0,3013.5,0.66197]
[1641669621986,0.03768046,3014.0,3013.5,1.302757]
[1641669622186,0.08294,3014.3,3013.5,1.302757]
[1641669622388,1.65868562,3015.0,3013.6,15.66849031]
[1641669622789,3.15868562,3015.0,3013.6,1.65849031]
[1641669622986,0.03767442,3014.9,3013.6,1.65849031]
[1641669623387,2.04246442,3014.9,3014.2,2.00479]
[1641669623587,2.12539442,3014.9,3014.3,0.66197]
[1641669623789,0.03767442,3014.8,3014.3,0.66197]
[1641669623987,0.03767442,3014.8,3014.4,0.640787]
[1641669624190,0.03767442,3014.8,3014.5,0.66197]
[1641669624390,0.08291,3015.6,3014.5,0.66197]
[1641669624588,1.65829229,3015.7,3014.5,0.66197]
[1641669624789,1.65810532,3016.0,3014.7,1.5]
[1641669624993,0.0829,3016.4,3014.4,0.640787]
[1641669625189,0.0829,3017.4,3014.5,0.0829]
[1641669625390,4.0,3016.4,3015.7,2.00479]
[1641669625592,5.5,3015.9,3014.0,0.08287]
[1641669625791,5.5,3015.9,3013.6,1.5]
[1641669625792,1.5,3015.4,3013.8,1.65837204]
[1641669625991,0.99493286,3015.3,3013.8,1.65837204]
[1641669626192,0.08293,3015.2,3013.8,1.65837204]
[1641669626393,0.7725,3015.4,3013.8,1.65837204]
[1641669626692,0.7725,3015.4,3013.6,1.5]
[1641669626891,0.7725,3015.4,3014.3,1.65814106]
[1641669627494,0.7725,3015.4,3014.8,2.00479]
[1641669627692,0.7725,3015.4,3014.9,1.302757]
[1641669629096,0.7725,3015.4,3014.9,0.66197]
[1641669629496,3.15857008,3015.2,3014.8,2.00479]
[1641669629698,4.0829,3015.1,3014.5,2.00479]
[1641669630501,0.0829,3015.1,3014.5,2.00479]
[1641669630702,0.99502777,3015.0,3014.5,2.00479]
[1641669630900,0.08291,3014.9,3014.5,2.00479]
[1641669631099,0.08291,3014.9,3014.5,2.645577]
[1641669631301,0.08291,3014.9,3014.5,2.00479]
[1641669631507,2.0877,3014.9,3014.5,2.00479]
[1641669631700,2.00479,3014.9,3014.6,0.66197]
[1641669633103,2.00479,3014.9,3014.6,1.302757]
[1641669633506,0.85541,3015.4,3014.6,1.302757]
[1641669633701,0.7725,3015.4,3014.6,1.302757]
[1641669633902,0.7725,3015.4,3015.1,1.65766279]
[1641669634101,0.0001,3015.4,3015.2,0.66197]
[1641669635201,0.0001,3015.4,3015.2,1.302757]
[1641669635403,0.0001,3015.4,3015.3,4.00958]
[1641669637008,0.0001,3015.4,3014.1,1.6582208]
[1641669637204,4.0,3015.2,3013.7,1.6584298]
[1641669637404,16.01479,3014.9,3014.2,2.00479]
[1641669637603,0.08293,3014.8,3014.2,2.00479]
[1641669638007,0.08293,3014.8,3014.2,3.307547]
[1641669639004,2.08772,3014.9,3014.2,2.66676]
[1641669639906,4.0,3014.6,3014.2,2.00479]
[1641669640206,1.5,3014.3,3013.9,2.00479]
[1641669640406,14.01,3013.9,3012.3,34.2491]
[1641669640610,0.08297,3013.8,3011.9,1.35383923]
[1641669640806,0.87947,3013.8,3011.9,1.35383923]
[1641669641006,14.01,3013.7,3012.1,1.65931865]
[1641669641206,0.08297,3013.6,3011.9,1.35383923]
[1641669641408,4.0,3013.4,3011.9,1.35383923]
[1641669641608,1.5,3012.8,3012.1,2.00479]
[1641669641806,1.5,3012.8,3011.2,2.70767846]
[1641669641807,1.5,3012.4,3011.1,1.35383923]
[1641669642008,0.083,3012.3,3011.1,1.35383923]
[1641669642407,14.01,3012.1,3011.1,1.35383923]
[1641669642606,0.08301,3012.0,3011.1,1.35383923]
[1641669642806,0.08301,3012.6,3011.1,1.35383923]
[1641669643008,0.08301,3012.6,3011.2,1.65983368]
[1641669643211,0.083,3012.8,3012.0,1.65939299]
[1641669643409,0.083,3013.0,3012.1,1.302757]
[1641669643609,0.08298,3013.3,3012.5,2.00479]
[1641669643808,0.08298,3013.3,3012.6,0.66197]
[1641669644008,0.08297,3013.8,3012.6,0.66197]
[1641669644812,0.08297,3013.8,3012.7,1.65900483]
[1641669645113,0.08297,3014.3,3012.8,2.16197]
[1641669645313,0.08297,3014.7,3013.2,1.65871864]
[1641669645512,2.00479,3014.5,3013.8,2.00479]
[1641669646412,2.00479,3014.5,3013.9,0.66197]
[1641669646815,2.00479,3014.8,3013.5,2.00479]
[1641669647012,2.00479,3014.8,3011.8,1.5]
[1641669647013,1.5,3014.1,3012.1,0.08294]
[1641669647213,0.08297,3014.0,3011.8,0.08297]
[1641669647513,2.00479,3013.4,3012.7,2.00479]
[1641669647914,2.00479,3013.4,3012.8,0.640787]
[1641669648116,2.00479,3013.4,3012.8,1.302757]
[1641669649115,2.00479,3013.4,3012.4,2.00479]
[1641669649316,14.01,3013.3,3012.4,2.00479]
[1641669649517,2.00479,3012.7,3012.0,2.00479]
[1641669649716,0.08298,3012.6,3012.0,2.00479]
[1641669649916,4.15631845,3012.1,3010.7,1.62460708]
[1641669650116,1.5,3011.8,3010.7,1.62460708]
[1641669650317,15.59301,3012.0,3010.5,1.35383923]
[1641669650818,0.6846,3011.9,3010.5,1.35383923]
[1641669651016,1.66053928,3011.6,3010.5,1.35383923]
[1641669651217,0.08301,3011.5,3010.5,1.35383923]
[1641669651518,0.08301,3011.5,3011.1,2.00479]
[1641669651716,3.16068819,3011.3,3010.3,1.62460708]
[1641669651916,1.5,3010.5,3009.2,1.66090885]
[1641669652121,0.08305,3010.4,3009.1,1.35383923]
[1641669652317,0.08305,3010.6,3009.1,1.35383923]
[1641669652518,6.814202,3011.2,3009.1,1.35383923]
[1641669652519,0.08305,3011.1,3009.1,1.35383923]
[1641669652717,0.08305,3011.1,3009.5,14.01]
[1641669652918,0.08304,3011.4,3009.5,14.01]
[1641669653519,2.08783,3011.4,3010.6,2.00479]
[1641669653720,2.08783,3011.4,3010.7,1.302757]
[1641669654020,0.08301,3011.7,3010.7,1.302757]
[1641669654219,0.08301,3012.5,3010.7,1.302757]
[1641669654425,0.08301,3012.6,3010.7,1.302757]
[1641669654822,0.08301,3012.6,3010.8,14.01]
[1641669655020,0.083,3012.8,3010.7,0.723787]
[1641669655220,0.08301,3012.5,3010.8,1.5]
[1641669655420,0.08301,3013.0,3010.7,0.640787]
[1641669655721,1.5,3011.6,3010.8,1.66003483]
[1641669655923,0.08301,3011.5,3010.8,1.66003483]
[1641669657120,1.5,3011.4,3010.8,1.66003483]
[1641669657320,0.08301,3011.3,3010.8,1.66003483]
[1641669657521,2.00479,3011.1,3010.8,1.66003483]
[1641669660222,1.5,3010.9,3010.4,2.00479]
[1641669660422,1.5,3010.7,3010.4,2.00479]
[1641669660622,0.08304,3010.6,3009.3,1.66089781]
[1641669661029,0.08305,3010.7,3009.3,1.66089781]
[1641669661225,0.08305,3010.8,3009.0,14.01]
[1641669661426,2.00479,3011.1,3009.7,1.5]
[1641669661625,0.9962012,3011.5,3010.6,2.00479]
[1641669661826,0.08304,3011.8,3010.6,2.88709]
[1641669662028,0.08301,3012.1,3010.8,1.66006239]
[1641669662528,0.76761,3012.1,3010.8,1.66006239]
[1641669662725,0.76761,3012.1,3010.6,2.88709]
[1641669662927,5.313055,3012.0,3010.6,2.88709]
[1641669663126,0.08301,3011.9,3010.6,2.88709]
[1641669663530,2.00479,3011.8,3011.1,2.00479]
[1641669663728,2.0878,3012.1,3011.6,1.5]
[1641669663930,0.083,3012.7,3012.0,1.65925533]
[1641669664229,0.76918667,3013.2,3012.1,0.66197]
[1641669664628,0.76918667,3013.2,3012.5,1.65910392]
[1641669664828,0.08297,3013.7,3012.6,0.66197]
[1641669665030,0.76918667,3013.9,3012.6,0.66197]
[1641669665329,1.5,3013.6,3012.6,0.66197]
[1641669665530,2.00479,3013.4,3012.7,2.00479]
[1641669666136,2.00479,3013.4,3012.8,0.66197]
[1641669666329,2.00479,3013.4,3012.8,1.302757]
[1641669666828,2.00479,3013.4,3012.8,0.66197]
[1641669667328,1.65966564,3013.2,3011.5,1.65966564]
[1641669667531,2.00479,3012.1,3011.5,1.65966564]
[1641669668128,5.5,3011.7,3009.7,2.70767846]
[1641669668330,1.5,3011.4,3010.1,1.62460708]
[1641669669028,6.39274774,3011.6,3010.1,1.62460708]
[1641669669029,0.08301,3011.6,3010.7,1.302757]
[1641669669632,0.08301,3011.7,3010.7,1.302757]
[1641669669834,2.00479,3012.1,3010.7,1.302757]
[1641669670431,2.00479,3012.1,3010.8,14.01]
[1641669671032,2.00479,3012.1,3011.0,1.5]
[1641669671437,2.00479,3012.1,3011.0,1.65990807]
[1641669671633,2.00479,3012.1,3011.4,2.00479]
[1641669671832,0.083,3012.0,3011.4,2.00479]
[1641669672032,14.093,3012.0,3011.4,2.00479]
[1641669672234,14.093,3012.0,3010.6,2.00479]
[1641669672433,1.66054203,3011.6,3010.6,2.00479]
[1641669672632,0.08301,3011.5,3010.6,2.00479]
[1641669672832,0.08301,3012.0,3010.8,1.5]
[1641669673032,0.08301,3012.0,3010.8,1.66004585]
[1641669673233,0.08301,3012.0,3010.6,2.00479]
[1641669673735,0.08301,3012.0,3011.1,2.00479]
[1641669673938,0.85219667,3013.0,3011.2,1.5]
[1641669674132,0.85219667,3013.0,3011.8,1.6595059]
[1641669674332,0.76918667,3013.0,3011.2,0.08298]
[1641669674535,0.76918667,3013.0,3011.1,2.00479]
[1641669674737,0.08298,3012.9,3011.1,2.00479]
[1641669675233,0.083,3013.1,3011.1,2.00479]
[1641669675634,2.08779,3013.1,3012.4,2.00479]
[1641669676637,2.08779,3013.1,3012.5,0.640787]
[1641669676836,2.08779,3013.1,3012.4,2.00479]
[1641669676837,2.00479,3013.1,3012.4,2.00479]
[1641669677236,0.99573145,3012.9,3012.4,2.00479]
[1641669677436,0.08298,3012.8,3012.1,2.00479]
[1641669677636,1.5,3012.5,3012.1,2.00479]
[1641669677837,0.99591764,3012.3,3010.4,0.08298]
[1641669678036,0.08301,3012.2,3010.0,0.08298]
[1641669678739,1.66028288,3012.1,3010.4,1.66028288]
[1641669678939,0.08301,3012.2,3010.1,1.5]
[1641669679136,0.08301,3012.2,3010.1,14.01]
[1641669679338,0.08301,3012.2,3010.3,14.01]
[1641669679538,2.00479,3011.9,3011.1,2.00479]
[1641669679739,2.00479,3011.9,3011.2,0.66197]
[1641669680838,2.00479,3011.9,3011.3,0.640787]
[1641669681643,2.00479,3011.9,3011.2,0.66197]
[1641669684046,2.00479,3011.9,3011.3,0.640787]
[1641669684247,2.00479,3011.9,3011.4,0.66197]
[1641669684648,1.07898495,3012.2,3011.4,0.66197]
[1641669684846,2.00479,3012.7,3011.4,0.66197]
[1641669685044,0.08298,3013.1,3011.4,0.66197]
[1641669685247,2.85461069,3013.0,3011.4,0.66197]
[1641669685446,1.19485139,3013.0,3011.4,0.66197]
[1641669685648,1.19485139,3013.0,3012.4,2.00479]
[1641669685949,1.19485139,3013.0,3012.4,2.66676]
[1641669686147,1.19485139,3013.0,3012.5,0.640787]
[1641669686347,0.08298,3013.3,3012.6,0.66197]
[1641669686549,0.76918667,3013.4,3012.6,0.66197]
[1641669686748,1.5,3013.2,3012.4,2.00479]
[1641669686950,1.5,3012.9,3012.1,2.00479]
[1641669687149,1.3147834,3012.7,3011.1,35.4712]
[1641669687348,1.583,3012.6,3010.4,0.08298]
[1641669687550,2.00479,3012.4,3011.7,2.00479]
[1641669687750,2.00479,3012.4,3011.4,2.00479]
[1641669687751,1.10323263,3012.1,3011.4,2.00479]
[1641669687950,0.083,3012.0,3011.4,2.00479]
[1641669688150,1.10323263,3012.1,3011.4,2.00479]
[1641669688550,1.5,3011.6,3011.4,2.00479]
[1641669688750,1.5,3011.6,3009.8,32.8873]
[1641669688751,0.08301,3011.5,3009.8,34.3873]
[1641669688951,0.08301,3011.5,3009.8,1.5]
[1641669689153,1.5,3011.0,3009.5,1.66057513]
[1641669689352,1.5,3010.8,3009.5,1.66057513]
[1641669689552,0.99652726,3010.5,3009.7,2.00479]
[1641669689751,2.08784,3010.4,3009.7,2.00479]
[1641669690152,8.0,3010.3,3009.7,2.00479]
[1641669690453,8.0,3010.3,3009.4,2.00479]
[1641669690454,0.99672775,3009.9,3009.4,2.00479]
[1641669690752,0.08305,3010.2,3009.5,0.66197]
[1641669690951,14.09305,3010.3,3009.4,2.00479]
[1641669691153,8.0,3010.0,3009.4,2.00479]
[1641669691355,0.08305,3009.9,3009.4,2.00479]
[1641669691553,0.08305,3009.9,3009.4,2.66676]
[1641669691756,2.00479,3009.8,3009.4,2.66676]
[1641669692254,0.08305,3010.3,3009.4,2.66676]
[1641669693056,14.01,3011.0,3009.4,2.66676]
[1641669693256,0.08305,3010.9,3009.4,4.32759713]
[1641669693655,2.00479,3010.7,3009.4,6.33238713]
[1641669693856,0.08305,3010.6,3009.4,4.67155]
[1641669694156,0.08305,3010.3,3009.4,4.67155]
[1641669694956,0.99668687,3010.0,3009.4,2.00479]
[1641669695158,0.08305,3009.9,3009.4,2.00479]
[1641669695858,2.00479,3009.8,3008.8,2.00479]
[1641669696059,0.9968908,3009.4,3007.9,3.1616264]
[1641669696257,0.08308,3009.3,3007.9,3.1616264]
[1641669696458,0.08308,3009.3,3007.9,1.5]
[1641669696861,0.08308,3009.3,3008.5,1.5]
[1641669697058,0.08308,3009.7,3008.6,1.302757]
[1641669697258,2.00479,3009.8,3008.6,15.312757]
[1641669697460,2.00479,3009.8,3008.6,1.302757]
[1641669697659,2.00479,3009.8,3009.3,2.00479]
[1641669697858,0.99683864,3009.6,3009.3,2.00479]
[1641669698057,0.08307,3009.5,3009.3,2.00479]
[1641669698458,0.99683864,3009.6,3009.3,2.00479]
[1641669699658,0.08307,3010.2,3009.4,0.640787]
[1641669699859,0.9965987,3010.3,3009.4,0.640787]
[1641669700065,2.00479,3010.4,3009.4,0.640787]
[1641669700263,2.00479,3010.4,3009.4,14.650787]
[1641669700660,2.00479,3010.4,3009.4,0.640787]
[1641669700860,2.00479,3010.4,3009.6,1.5]
[1641669701061,2.00479,3010.4,3009.8,1.66059718]
[1641669701461,2.00479,3010.4,3009.9,0.66197]
[1641669701761,2.00479,3010.4,3009.9,2.66676]
[1641669701964,0.76918667,3011.4,3009.9,2.66676]
[1641669702163,0.99626842,3011.3,3009.9,4.16676]
[1641669702561,0.76918667,3011.4,3010.1,1.5]
[1641669702763,0.76918667,3011.5,3010.1,1.5]
[1641669702961,0.76918667,3011.5,3009.9,2.00479]
[1641669702962,0.76918667,3011.5,3010.6,1.66013955]
[1641669703563,0.76918667,3011.5,3009.9,4.18939]
[1641669703763,0.76918667,3011.5,3011.4,2.00479]
[1641669704363,0.08303,3011.8,3011.4,2.00479]
[1641669705663,0.76918667,3011.7,3011.4,2.00479]
[1641669705865,0.76918667,3011.7,3011.3,0.66197]
[1641669706165,0.76918667,3011.7,3011.1,2.00479]
[1641669706166,0.257553,3011.6,3011.1,2.00479]
[1641669706368,0.08301,3011.5,3011.1,2.00479]
[1641669707766,0.340563,3011.6,3011.1,2.00479]
[1641669708368,0.340563,3011.6,3011.1,2.645577]
[1641669708570,0.76918667,3011.7,3011.2,0.66197]
[1641669709267,0.76918667,3011.7,3011.2,2.16197]
[1641669709268,8.667e-05,3011.7,3011.2,2.16197]
[1641669709468,1.28197778,3012.2,3011.2,0.66197]
[1641669709670,1.28197778,3012.2,3011.8,2.00479]
[1641669709871,1.28197778,3012.2,3011.9,0.66197]
[1641669710670,1.28197778,3012.2,3011.8,2.00479]
[1641669710869,1.36497778,3012.2,3011.9,0.640787]
[1641669711069,1.28197778,3012.2,3011.8,2.00479]
[1641669712273,1.28197778,3012.2,3011.9,0.66197]
[1641669712570,1.53953078,3012.2,3011.9,0.66197]
[1641669713070,1.53837333,3012.4,3011.8,2.645577]
[1641669713274,0.08298,3012.8,3011.8,2.645577]
[1641669713571,1.28197778,3012.9,3011.8,2.645577]
[1641669713773,1.28197778,3012.9,3012.6,2.00479]
[1641669714375,1.28197778,3012.9,3012.6,3.50479]
[1641669714573,1.28197778,3012.9,3012.6,2.00479]
[1641669714777,2.24534047,3013.1,3012.7,0.66197]
[1641669714778,0.257553,3013.0,3012.7,0.66197]
[1641669715074,1.28197778,3013.2,3012.8,0.640787]
[1641669715273,1.28197778,3013.2,3012.9,0.66197]
[1641669715575,1.28197778,3013.2,3012.6,2.00479]
[1641669715773,1.65987226,3012.8,3011.8,2.00479]
[1641669715975,0.08298,3012.7,3011.8,2.00479]
[1641669716175,1.07879231,3012.7,3011.8,2.00479]
[1641669716577,4.0,3012.6,3011.8,2.00479]
[1641669716776,0.340533,3012.5,3011.8,2.00479]
[1641669716978,0.08298,3012.6,3011.9,1.302757]
[1641669717178,2.00479,3013.0,3012.4,1.65915071]
[1641669717380,0.08298,3013.4,3012.5,0.66197]
[1641669717679,0.08298,3013.4,3013.0,2.00479]
[1641669717879,0.08296,3013.7,3013.0,2.00479]
[1641669718078,4.0,3013.4,3012.7,2.00479]
[1641669718278,0.99569074,3013.0,3011.7,1.65952242]
[1641669718480,0.08298,3012.9,3011.7,1.65952242]
[1641669718879,1.5,3012.8,3011.2,36.7211]
[1641669719080,5.5,3012.4,3011.2,0.6671]
[1641669719280,1.5,3012.2,3011.2,0.6671]
[1641669719482,0.9960435,3012.0,3011.2,0.6671]
[1641669719679,2.00479,3011.7,3011.2,0.6671]
[1641669720680,2.00479,3011.7,3011.2,1.307887]
[1641669721285,2.00479,3011.7,3011.2,0.6671]
[1641669722084,0.08301,3011.6,3011.2,0.6671]
[1641669723985,0.08301,3012.1,3011.2,0.6671]
[1641669724185,0.08301,3012.4,3011.2,2.3269144]
[1641669724388,1.53837333,3012.7,3011.9,1.65943705]
[1641669724584,1.53837333,3012.7,3012.0,0.66197]
[1641669724786,1.53837333,3012.7,3011.3,1.5]
[1641669724994,1.53837333,3012.7,3011.5,1.5]
[1641669725187,1.28197778,3013.0,3011.5,1.5]
[1641669725486,1.28197778,3013.0,3011.5,14.01]
[1641669725687,2.00479,3012.9,3012.2,2.00479]
[1641669725887,0.257553,3012.8,3012.3,1.302757]
[1641669726087,1.28197778,3013.0,3012.3,1.302757]
[1641669726588,4.22331827,3013.7,3012.3,1.302757]
[1641669726589,0.08298,3013.8,3012.5,1.5]
[1641669726787,0.08298,3013.8,3012.8,1.65894428]
[1641669726990,1.28197778,3013.9,3012.8,1.65894428]
[1641669727388,1.28197778,3013.9,3012.9,1.5]
[1641669727589,1.28197778,3013.9,3013.3,1.5]
[1641669727787,1.92296667,3014.3,3013.8,5.66788329]
[1641669727988,2.56395556,3014.6,3013.9,15.51]
[1641669728190,1.33562588,3014.6,3013.9,15.51]
[1641669728389,1.60268438,3014.7,3014.5,1.65796511]
[1641669728590,1.60268438,3014.7,3014.5,3.15796511]
[1641669728789,1.60268438,3014.7,3014.6,0.66197]
[1641669728990,1.60268438,3014.7,3013.8,5.50958]
[1641669729190,1.60268438,3014.7,3013.8,19.51958]
[1641669729389,1.60268438,3014.7,3013.8,5.50958]
[1641669729591,2.70986122,3014.9,3014.3,1.5]
[1641669729792,3.20494445,3015.3,3014.7,2.00479]
[1641669730193,2.00479,3015.4,3014.7,2.00479]
[1641669730392,2.00479,3015.4,3014.7,2.66676]
[1641669730792,0.257553,3015.3,3014.7,2.66676]
[1641669731392,2.00479,3015.4,3014.7,2.66676]
[1641669731994,2.00479,3015.4,3014.8,1.5]
[1641669732195,0.80284154,3015.8,3015.3,1.65749245]
[1641669732395,0.80284154,3015.7,3015.4,0.640787]
[1641669732593,0.80284154,3015.7,3015.4,1.302757]
[1641669732799,0.257553,3015.6,3014.7,2.00479]
[1641669732995,0.0829,3015.5,3014.7,2.00479]
[1641669733797,4.0,3015.4,3014.7,2.00479]
[1641669734095,0.0829,3015.3,3014.7,2.00479]
[1641669734297,5.5,3014.8,3013.7,1.6584573]
[1641669734496,1.5,3014.4,3013.7,1.6584573]
[1641669734695,1.5,3014.2,3012.2,0.08293]
[1641669734897,2.7374677,3014.1,3012.4,1.659181]
[1641669735096,8.0468197,3014.1,3012.4,1.659181]
[1641669735696,14.01,3014.0,3012.4,1.659181]
[1641669735897,2.00479,3013.7,3012.9,2.00479]
[1641669736095,0.340513,3013.6,3013.0,0.66197]
[1641669736295,4.326532,3013.6,3013.0,0.66197]
[1641669736496,0.340513,3013.6,3013.0,0.66197]
[1641669736897,1.5,3013.1,3012.9,2.00479]
[1641669737097,0.6846,3012.8,3011.3,0.08297]
[1641669737297,4.0,3012.2,3011.2,1.65980062]
[1641669737501,1.5,3012.1,3011.2,1.65980062]
[1641669737701,0.08301,3012.0,3011.2,1.65980062]
[1641669737904,2.0878,3012.0,3011.3,3.307547]
[1641669738103,5.570343,3011.9,3011.3,3.307547]
[1641669738301,0.08301,3011.8,3011.3,3.307547]
[1641669739602,0.257553,3011.9,3011.3,3.307547]